bitfinex/quotes_SOLUSD_20241113
["timestamp","ask_amount","ask_price","bid_price","bid_amount"]
[1731490750151,22.7074416,205.64,205.57,22.7074416]
[1731490750472,4.8626,205.65,205.57,22.7074416]
[1731490750652,4.8626,205.65,205.59,22.7074416]
[1731490751054,4.8626,205.65,205.59,27.5714416]
[1731490751949,22.1748,205.72,205.63,22.7074416]
[1731490752170,4.8612,205.71,205.65,22.7074416]
[1731490753170,24.8612,205.71,205.65,22.7074416]
[1731490753953,22.1748,205.72,205.65,22.7074416]
[1731490754150,22.1748,205.72,205.67,22.7074416]
[1731490754355,27.0358,205.72,205.63,22.7074416]
[1731490754555,22.7074416,205.71,205.63,22.7074416]
[1731490754759,22.7074416,205.71,205.61,4.8635]
[1731490754760,22.1748,205.72,205.67,22.7074416]
[1731490754966,4.8605,205.74,205.69,22.7074416]
[1731490755173,22.8329316,205.75,205.67,22.7074416]
[1731490755349,0.8371416,205.81,205.74,22.7074416]
[1731490755557,4.859,205.8,205.74,22.7074416]
[1731490755875,22.8329316,205.79,205.72,22.7074416]
[1731490756476,4.859,205.8,205.76,22.7074416]
[1731490757062,6.365,205.86,205.78,27.5667416]
[1731490757260,4.8567,205.9,205.84,22.7074416]
[1731490757473,0.12549,205.89,205.84,22.7074416]
[1731490757978,0.12549,205.86,205.78,22.7074416]
[1731490758178,22.7074416,205.89,205.8,22.7074416]
[1731490758360,20.0,205.88,205.82,22.7074416]
[1731490758783,22.7074416,205.87,205.8,22.7074416]
[1731490759077,0.12549,205.86,205.78,22.7074416]
[1731490759260,0.12549,205.84,205.78,22.7074416]
[1731490760878,0.12549,205.82,205.7,4.8613]
[1731490761054,0.12549,205.8,205.73,22.7074416]
[1731490761254,4.8597,205.77,205.71,22.7074416]
[1731490761559,4.8588,205.81,205.75,22.7074416]
[1731490762162,0.12549,205.8,205.73,22.7074416]
[1731490762658,4.8593,205.79,205.73,22.7074416]
[1731490764775,0.12549,205.78,205.69,22.7074416]
[1731490764978,0.12549,205.76,205.69,22.7074416]
[1731490765282,27.5667416,205.79,205.71,22.7074416]
[1731490765877,0.12549,205.78,205.71,22.7074416]
[1731490766073,0.12549,205.78,205.73,22.7074416]
[1731490766276,0.12549,205.78,205.75,22.7074416]
[1731490768274,0.12549,205.79,205.73,22.7074416]
[1731490768484,0.12549,205.77,205.73,22.7074416]
[1731490768777,0.12549,205.77,205.71,22.7074416]
[1731490769474,0.12549,205.79,205.73,22.7074416]
[1731490769677,4.98479,205.79,205.73,22.7074416]
[1731490770054,4.98479,205.79,205.75,22.7074416]
[1731490770485,4.98479,205.79,205.73,22.7074416]
[1731490771562,6.0356,205.8,205.75,22.7074416]
[1731490771764,16.3803,205.82,205.77,22.7074416]
[1731490771977,0.12549,205.82,205.79,22.7074416]
[1731490772165,6.1644,205.86,205.79,22.7074416]
[1731490772375,6.1644,205.86,205.81,22.7074416]
[1731490772573,11.0221,205.86,205.81,22.7074416]
[1731490772780,21.3616,205.88,205.81,22.7074416]
[1731490773079,4.8569,205.9,205.85,22.7074416]
[1731490773267,11.4131,205.92,205.87,22.7074416]
[1731490774173,4.8564,205.92,205.87,22.7074416]
[1731490774375,0.12549,205.91,205.87,22.7074416]
[1731490775682,4.8564,205.92,205.87,22.7074416]
[1731490776084,0.12549,205.91,205.87,22.7074416]
[1731490777180,4.8564,205.92,205.87,22.7074416]
[1731490777785,0.4924824,205.93,205.91,22.7074416]
[1731490778088,0.4924824,205.93,205.92,23.776884]
[1731490778462,0.4924824,205.93,205.91,22.7074416]
[1731490779083,0.4924824,205.93,205.92,48.633084]
[1731490779288,11.3114,206.08,205.94,23.776884]
[1731490779471,11.3114,206.08,206.02,22.7074416]
[1731490780069,0.12549,206.07,206.02,22.7074416]
[1731490780882,0.12549,206.05,205.98,22.7074416]
[1731490781192,22.8329316,206.05,205.96,22.7074416]
[1731490781570,0.12549,205.98,205.9,22.7074416]
[1731490781767,22.7074416,205.97,205.9,22.7074416]
[1731490781993,0.12549,205.96,205.88,22.7074416]
[1731490782877,0.12549,205.96,205.9,22.7074416]
[1731490783183,4.98099,205.96,205.9,22.7074416]
[1731490783884,4.8549,205.98,205.9,22.7074416]
[1731490784185,22.8329316,205.97,205.9,22.7074416]
[1731490784886,22.8329316,205.97,205.88,22.7074416]
[1731490785473,4.8553,205.96,205.9,22.7074416]
[1731490785675,0.12549,205.95,205.9,22.7074416]
[1731490785885,4.8553,205.96,205.92,22.7074416]
[1731490786077,4.8547,205.99,205.92,22.7074416]
[1731490786483,0.12549,205.98,205.94,22.7074416]
[1731490787399,4.8549,205.98,205.94,22.7074416]
[1731490787724,22.8329316,205.97,205.88,22.7074416]
[1731490788371,0.12549,205.94,205.88,22.7074416]
[1731490788787,4.98129,205.94,205.88,22.7074416]
[1731490789685,4.98129,205.94,205.86,22.7074416]
[1731490791887,4.98129,205.94,205.84,4.858]
[1731490791888,4.98169,205.92,205.84,27.5654416]
[1731490792501,4.98169,205.92,205.86,22.7074416]
[1731490793001,10.9339,205.96,205.9,22.7074416]
[1731490793172,10.9339,205.96,205.88,22.7074416]
[1731490793498,0.12549,205.95,205.88,22.7074416]
[1731490794079,0.12549,205.95,205.89,4.8569]
[1731490794398,4.98109,205.95,205.88,34.8502416]
[1731490794976,0.12549,205.95,205.9,22.7074416]
[1731490795175,10.9338,205.96,205.9,22.7074416]
[1731490795389,15.5127,206.0,205.94,22.7074416]
[1731490795700,10.952,206.01,205.96,22.7074416]
[1731490796095,6.0978,206.01,205.96,22.7074416]
[1731490796399,4.854,206.02,205.96,27.5626416]
[1731490796589,4.854,206.02,205.96,22.7074416]
[1731490796992,0.12549,206.01,205.96,22.7074416]
[1731490797297,10.9508,206.06,206.0,22.7074416]
[1731490797508,6.0978,206.06,206.0,22.7074416]
[1731490798093,33.6582416,206.06,205.98,22.7074416]
[1731490798406,22.7074416,206.04,205.96,22.7074416]
[1731490799291,27.5609416,206.04,205.96,27.5625416]
[1731490799494,22.7074416,206.01,205.94,22.7074416]
[1731490799807,22.7074416,206.01,205.92,22.7074416]
[1731490800100,22.7074416,206.01,205.92,27.5635416]
[1731490800501,22.7074416,206.01,205.94,22.7074416]
[1731490801298,4.8546,205.99,205.92,39.7041416]
[1731490801901,4.8531,206.05,205.97,22.7074416]
[1731490802118,4.8531,206.05,205.99,22.7074416]
[1731490802403,4.8531,206.05,205.97,22.7074416]
[1731490802605,0.12549,206.04,205.97,22.7074416]
[1731490802993,4.8536,206.03,205.97,22.7074416]
[1731490806300,4.854,206.02,205.95,22.7074416]
[1731490806808,4.8536,206.04,205.99,22.7074416]
[1731490807006,4.8526,206.08,206.01,22.7074416]
[1731490809416,4.8526,206.08,206.01,334.7074416]
[1731490809803,4.8526,206.08,206.03,22.7074416]
[1731490810492,4.8526,206.08,206.01,339.5615416]
[1731490810691,4.8526,206.08,206.01,334.7074416]
[1731490811524,4.8526,206.08,206.01,22.7074416]
[1731490811690,0.12549,206.07,206.01,22.7074416]
[1731490811896,22.7074416,206.03,205.95,39.7014416]
[1731490812203,22.7074416,206.03,205.96,22.7074416]
[1731490812400,22.8329316,206.05,205.96,22.7074416]
[1731490813510,22.8329316,206.03,205.96,22.7074416]
[1731490814202,4.8534,206.04,205.96,22.7074416]
[1731490814904,22.8329316,206.03,205.94,22.7074416]
[1731490815113,22.7074416,206.01,205.92,22.7074416]
[1731490815497,4.8543,206.0,205.93,4.856]
[1731490815696,4.8543,206.0,205.94,22.7074416]
[1731490816004,4.8543,206.0,205.92,22.7074416]
[1731490816205,0.12549,205.96,205.9,22.7074416]
[1731490816392,22.7074416,205.95,205.88,22.7074416]
[1731490816594,0.12549,205.96,205.9,22.7074416]
[1731490817219,0.12549,205.96,205.88,22.7074416]
[1731490817520,4.8555,205.95,205.88,22.7074416]
[1731490818018,0.12549,205.94,205.88,22.7074416]
[1731490818395,22.7074416,205.91,205.84,22.7074416]
[1731490819218,22.7074416,205.89,205.82,22.7074416]
[1731490819401,22.7074416,205.89,205.8,22.7074416]
[1731490819709,27.5645416,205.89,205.8,27.5663416]
[1731490819911,4.8566,205.91,205.84,22.7074416]
[1731490820220,4.8561,205.93,205.88,22.7074416]
[1731490820695,4.8561,205.93,205.86,22.7074416]
[1731490820902,4.8557,205.95,205.88,22.7074416]
[1731490821119,4.8557,205.95,205.88,334.7074416]
[1731490821701,22.7074416,205.9,205.88,312.0]
[1731490821901,22.7074416,205.9,205.8,22.7074416]
[1731490822099,22.7074416,205.92,205.82,22.7074416]
[1731490822418,39.3604416,205.99,205.9,22.7074416]
[1731490822736,39.3604416,205.99,205.92,22.7074416]
[1731490823291,44.2152416,205.99,205.92,22.7074416]
[1731490823607,0.12549,205.98,205.9,22.7074416]
[1731490823803,0.12549,205.98,205.84,6.297]
[1731490823804,0.12549,205.96,205.88,22.7074416]
[1731490824017,22.7074416,205.95,205.86,22.7074416]
[1731490824503,0.12549,205.94,205.86,22.7074416]
[1731490825020,22.7074416,205.93,205.86,22.7074416]
[1731490825902,4.8562,205.92,205.86,22.7074416]
[1731490827010,4.8562,205.92,205.85,324.1447]
[1731490827315,4.8562,205.92,205.86,22.7074416]
[1731490827917,22.7074416,205.95,205.86,22.7074416]
[1731490828125,27.5624416,205.97,205.9,22.7074416]
[1731490828495,27.5624416,205.97,205.88,22.7074416]
[1731490828897,22.7074416,205.95,205.86,22.7074416]
[1731490829101,4.8557,205.94,205.86,27.5650416]
[1731490829822,22.7074416,206.03,205.92,22.7074416]
[1731490830003,22.7074416,206.01,205.92,22.7074416]
[1731490830203,0.12549,206.0,205.92,22.7074416]
[1731490831107,27.5620416,205.99,205.92,334.7074416]
[1731490831307,27.5617416,206.01,205.92,339.5635416]
[1731490832410,27.5620416,205.99,205.92,346.8480416]
[1731490832914,18.98453446,205.99,205.92,324.1406]
[1731490833628,0.12549,205.96,205.87,31.13033446]
[1731490834212,15.2745,206.02,205.95,14.12993446]
[1731490834416,20.1284,206.02,205.97,14.12993446]
[1731490834731,21.5383,206.07,206.01,14.12993446]
[1731490834940,26.3911,206.07,206.01,14.12993446]
[1731490835426,21.5383,206.07,206.01,14.12993446]
[1731490835634,4.852,206.1,206.01,14.12993446]
[1731490835927,14.12993446,206.09,206.01,14.12993446]
[1731490836137,0.12549,206.08,205.99,14.12993446]
[1731490836506,18.98263446,206.07,205.99,326.12993446]
[1731490836903,27.44461699,206.07,205.99,312.0]
[1731490837529,22.59191699,206.07,205.99,312.0]
[1731490837702,22.59191699,206.07,206.0,22.59191699]
[1731490837906,4.8525,206.08,206.02,22.59191699]
[1731490838910,4.852,206.1,206.02,27.44561699]
[1731490839127,22.59191699,206.11,206.02,39.58031699]
[1731490840314,4.852,206.1,206.02,39.58031699]
[1731490840523,4.8524,206.08,206.02,12.1347]
[1731490842343,4.852,206.1,206.02,39.58041699]
[1731490843531,22.59191699,206.11,206.02,39.58041699]
[1731490843837,27.44371699,206.11,206.02,39.58041699]
[1731490844624,26.8782,206.12,206.04,22.59191699]
[1731490845147,22.0266,206.12,206.06,22.59191699]
[1731490845351,22.0266,206.12,206.05,23.776884]
[1731490845352,0.4924824,206.14,206.08,22.59191699]
[1731490845642,0.4924824,206.14,206.1,22.59191699]
[1731490845836,0.4924824,206.14,206.12,22.59191699]
[1731490846019,0.4924824,206.14,206.1,22.59191699]
[1731490847143,22.59191699,206.13,206.05,27.44501699]
[1731490847347,0.12549,206.12,206.05,22.59191699]
[1731490847643,4.8515,206.12,206.05,22.59191699]
[1731490848051,4.8515,206.12,206.05,27.44501699]
[1731490848349,4.8515,206.12,206.04,20.0]
[1731490849435,44.84540699,206.11,206.03,22.59191699]
[1731490849831,4.852,206.1,206.03,22.59191699]
[1731490850031,22.71740699,206.09,206.01,22.59191699]
[1731490851160,4.8523,206.09,206.02,4.8538]
[1731490851446,0.4924824,206.14,206.05,22.59191699]
[1731490851751,0.4924824,206.14,206.07,22.59191699]
[1731490851919,22.59191699,206.13,206.05,22.59191699]
[1731490852443,22.59191699,206.13,206.05,334.59191699]
[1731490853429,0.12549,206.12,206.05,334.59191699]
[1731490853632,27.44331699,206.13,206.05,27.44501699]
[1731490854357,4.8514,206.13,206.05,27.44501699]
[1731490854949,4.8514,206.13,206.07,22.59191699]
[1731490855137,5.3435824,206.14,206.07,22.59191699]
[1731490855538,22.71740699,206.13,206.05,22.59191699]
[1731490855746,22.59191699,206.11,206.04,20.0]
[1731490855935,22.59191699,206.09,206.02,12.1347]
[1731490856730,0.12549,206.13,206.02,12.1347]
[1731490856931,4.8524,206.08,206.01,14.11640335]
[1731490857137,14.11640335,206.09,206.01,18.97040335]
[1731490857327,18.96870335,206.09,206.01,31.10570335]
[1731490857532,14.11640335,206.11,206.04,20.0]
[1731490857931,18.96820335,206.11,206.04,20.0]
[1731490859748,0.4924824,206.14,206.07,14.11640335]
[1731490859948,0.4924824,206.14,206.09,14.11640335]
[1731490860151,0.4924824,206.14,206.09,312.0]
[1731490860335,5.3435824,206.14,206.09,312.0]
[1731490860851,0.4924824,206.14,206.09,326.11640335]
[1731490861056,0.4924824,206.14,206.11,14.11640335]
[1731490861432,0.4924824,206.14,206.13,14.11640335]
[1731490861744,0.4924824,206.14,206.13,18.96770335]
[1731490862259,0.4924824,206.14,206.13,42.74458735]
[1731490862461,0.4924824,206.14,206.13,62.74458735]
[1731490863233,22.4979,206.26,206.16,0.1]
[1731490863440,35.66490335,206.33,206.23,14.11640335]
[1731490863938,14.11640335,206.31,206.23,14.11640335]
[1731490864445,35.66490335,206.33,206.25,14.11640335]
[1731490864958,27.38435662,206.32,206.23,339.38625662]
[1731490865331,22.53755662,206.25,206.18,20.0]
[1731490865741,22.53755662,206.27,206.19,22.53755662]
[1731490866864,22.53755662,206.29,206.22,4.8491]
[1731490867060,27.38515662,206.29,206.21,22.53755662]
[1731490868035,27.38555662,206.27,206.19,22.53755662]
[1731490869343,27.38555662,206.27,206.19,27.38735662]
[1731490869545,4.848,206.27,206.21,22.53755662]
[1731490869743,27.38515662,206.29,206.21,22.53755662]
[1731490871847,22.53755662,206.27,206.2,20.0]
[1731490872057,27.38515662,206.29,206.2,20.0]
[1731490872653,33.6654,206.33,206.23,22.53755662]
[1731490872654,22.53755662,206.31,206.23,22.53755662]
[1731490872862,4.8472,206.31,206.25,22.53755662]
[1731490873042,0.4924824,206.34,206.29,22.53755662]
[1731490874362,22.53755662,206.32,206.25,4.8482]
[1731490874557,22.53755662,206.32,206.24,24.8486]
[1731490875063,27.87643902,206.34,206.27,22.53755662]
[1731490875964,0.4924824,206.34,206.29,22.53755662]
[1731490876161,0.4924824,206.34,206.28,20.0]
[1731490876162,4.8432,206.48,206.33,44.002374]
[1731490876469,27.37965662,206.52,206.43,22.53755662]
[1731490876667,22.53755662,206.48,206.39,22.53755662]
[1731490878077,16.9459,206.54,206.41,22.53755662]
[1731490878244,22.53755662,206.51,206.43,22.53755662]
[1731490878862,22.53755662,206.49,206.43,312.0]
[1731490879255,27.38045662,206.49,206.41,27.38205662]
[1731490879952,27.37995662,206.51,206.43,22.53755662]
[1731490881062,27.37995662,206.51,206.43,27.38175662]
[1731490881260,4.8424,206.51,206.45,22.53755662]
[1731490881671,4.8424,206.51,206.43,27.38175662]
[1731490882374,4.8424,206.51,206.45,22.53755662]
[1731490882675,5.3340824,206.55,206.49,22.53755662]
[1731490882858,0.4924824,206.55,206.49,22.53755662]
[1731490883175,5.3339824,206.55,206.49,22.53755662]
[1731490883376,0.4924824,206.55,206.51,22.53755662]
[1731490883762,0.4924824,206.55,206.53,22.53755662]
[1731490884351,22.53755662,206.54,206.45,22.53755662]
[1731490884575,22.53755662,206.54,206.45,34.64675662]
[1731490884756,22.97836402,206.54,206.45,39.49045662]
[1731490884960,22.97836402,206.54,206.47,22.53755662]
[1731490885356,0.4408074,206.54,206.47,22.53755662]
[1731490885563,0.4408074,206.54,206.51,22.53755662]
[1731490885758,0.4408074,206.54,206.53,22.53755662]
[1731490886176,0.4408074,206.54,206.51,22.53755662]
[1731490886476,0.4408074,206.54,206.49,22.53755662]
[1731490886790,0.4408074,206.54,206.47,22.53755662]
[1731490887071,0.4408074,206.54,206.49,22.53755662]
[1731490887859,5.2826074,206.54,206.49,22.53755662]
[1731490888060,27.82016402,206.54,206.47,22.53755662]
[1731490888365,5.2826074,206.54,206.47,22.53755662]
[1731490888569,0.12549,206.53,206.45,22.53755662]
[1731490888756,22.53755662,206.52,206.45,22.53755662]
[1731490888959,22.53755662,206.52,206.45,27.38125662]
[1731490889283,22.53755662,206.5,206.43,22.53755662]
[1731490889459,22.53755662,206.5,206.42,4.8444]
[1731490890282,22.66304662,206.52,206.43,22.53755662]
[1731490890657,22.66304662,206.52,206.44,20.0]
[1731490890875,22.53755662,206.5,206.41,34.64885662]
[1731490891076,22.53755662,206.48,206.41,34.64885662]
[1731490891263,22.53755662,206.48,206.39,22.53755662]
[1731490892264,22.53755662,206.48,206.36,16.1716]
[1731490892265,22.53755662,206.5,206.41,22.53755662]
[1731490892458,27.37965662,206.52,206.43,22.53755662]
[1731490892865,22.53755662,206.48,206.41,20.0]
[1731490893664,0.12549,206.49,206.41,20.0]
[1731490893864,22.53755662,206.5,206.41,20.0]
[1731490894093,27.38015662,206.5,206.42,22.53755662]
[1731490895086,27.38015662,206.5,206.4,22.53755662]
[1731490895087,22.53755662,206.48,206.4,22.53755662]
[1731490895282,22.53755662,206.48,206.4,27.38235662]
[1731490896377,27.38065662,206.48,206.4,27.38235662]
[1731490896589,4.8427,206.5,206.44,22.53755662]
[1731490896769,4.8427,206.5,206.42,22.53755662]
[1731490896967,27.38025662,206.5,206.42,22.53755662]
[1731490897980,27.38025662,206.5,206.4,328.9572]
[1731490897981,22.53755662,206.48,206.4,34.64995662]
[1731490898384,22.53755662,206.48,206.4,39.49485662]
[1731490899086,4.8427,206.5,206.44,22.53755662]
[1731490899287,0.12549,206.51,206.44,22.53755662]
[1731490899461,22.53755662,206.5,206.42,22.53755662]
[1731490900182,27.38055662,206.48,206.38,27.38275662]
[1731490900366,23.1811074,206.53,206.38,27.38275662]
[1731490900367,27.38035662,206.5,206.42,22.53755662]
[1731490900788,4.8428,206.5,206.42,14.05974514]
[1731490902372,4.8428,206.5,206.42,18.90414514]
[1731490902577,4.8428,206.5,206.42,14.05974514]
[1731490902887,4.8428,206.5,206.42,18.90414514]
[1731490904070,19.02813514,206.49,206.4,31.01644514]
[1731490904266,14.05974514,206.47,206.38,14.05974514]
[1731490904466,14.05974514,206.45,206.36,31.01984514]
[1731490904882,14.05974514,206.47,206.38,14.05974514]
[1731490905086,18.90264514,206.49,206.4,14.05974514]
[1731490905670,0.12549,206.48,206.4,14.05974514]
[1731490906275,4.8433,206.47,206.4,18.90464514]
[1731490906680,18.90274514,206.49,206.4,31.01704514]
[1731490907284,18.90274514,206.49,206.41,312.0]
[1731490907890,18.90274514,206.49,206.41,316.8447]
[1731490908588,4.843,206.49,206.43,14.05974514]
[1731490908790,4.843,206.49,206.41,16.9565]
[1731490908983,4.843,206.49,206.42,14.05974514]
[1731490909383,18.90224514,206.51,206.42,14.05974514]
[1731490909582,42.08295254,206.53,206.46,14.05974514]
[1731490909795,23.1811074,206.53,206.48,14.05974514]
[1731490910002,0.4408074,206.53,206.5,14.05974514]
[1731490910291,0.4408074,206.53,206.52,14.05974514]
[1731490911070,0.4408074,206.53,206.52,34.05974514]
[1731490911601,0.4408074,206.53,206.52,57.83662914]
[1731490911889,29.20404514,206.68,206.54,0.1]
[1731490912097,15.1443,206.68,206.61,14.05974514]
[1731490912274,15.1443,206.68,206.63,14.05974514]
[1731490912468,20.41204514,206.7,206.63,14.05974514]
[1731490912671,6.3523,206.7,206.63,14.05974514]
[1731490912891,6.3523,206.7,206.65,14.05974514]
[1731490913083,30.19014514,206.74,206.65,14.05974514]
[1731490913487,5.3231035,206.73,206.65,14.05974514]
[1731490914271,5.3231035,206.73,206.67,14.05974514]
[1731490915326,5.3231035,206.73,206.68,312.0]
[1731490915681,14.05974514,206.7,206.68,312.0]
[1731490915884,14.05974514,206.7,206.6,20.0]
[1731490916075,14.05974514,206.67,206.6,20.0]
[1731490916890,22.45733943,206.68,206.61,20.0]
[1731490917177,22.45733943,206.68,206.6,22.45733943]
[1731490917377,4.8386,206.67,206.6,22.45733943]
[1731490917588,22.45733943,206.68,206.6,27.29743943]
[1731490917887,27.29573943,206.68,206.6,27.29743943]
[1731490918590,27.29573943,206.68,206.61,20.0]
[1731490918782,27.29573943,206.68,206.61,332.0]
[1731490918983,0.12549,206.7,206.61,336.8399]
[1731490919185,22.58282943,206.7,206.62,22.45733943]
[1731490919388,22.45733943,206.7,206.62,22.45733943]
[1731490919598,4.8376,206.71,206.64,22.45733943]
[1731490919898,0.4858035,206.73,206.66,22.45733943]
[1731490920911,5.3231035,206.73,206.66,22.45733943]
[1731490921478,5.3231035,206.73,206.66,27.29613943]
[1731490921886,0.4858035,206.73,206.66,27.29613943]
[1731490922507,5.3231035,206.73,206.66,27.29613943]
[1731490922695,5.3231035,206.73,206.7,312.0]
[1731490922899,0.4858035,206.73,206.72,42.45733943]
[1731490923204,0.4858035,206.73,206.72,71.07162343]
[1731490926184,0.4858035,206.73,206.72,383.07162343]
[1731490927000,0.4858035,206.73,206.72,383.19711343]
[1731490929515,4.834,206.87,206.74,0.1]
[1731490929695,4.8336,206.89,206.84,22.45733943]
[1731490930213,4.8336,206.89,206.82,22.45733943]
[1731490930387,4.8336,206.89,206.84,22.45733943]
[1731490931699,15.0,206.9,206.88,22.45733943]
[1731490932703,15.0,206.9,206.89,312.0]
[1731490932911,15.0,206.9,206.89,332.0]
[1731490933294,15.0,206.9,206.89,355.776884]
[1731490933695,15.0,206.9,206.89,368.55283915]
[1731490934793,15.0,206.9,206.89,368.65283915]
[1731490936201,15.0,206.9,206.89,24.8334]
[1731490936911,15.0,206.9,206.88,12.0841]
[1731490937113,15.0,206.9,206.88,16.9178]
[1731490938199,15.0,206.9,206.89,20.0]
[1731490938801,15.0,206.9,206.89,43.776884]
[1731490939812,15.0,206.9,206.89,20.0]
[1731490941510,15.0,206.9,206.89,33.99886317]
[1731490943108,15.0,206.9,206.89,20.0]
[1731490944101,15.0,206.9,206.89,33.99886317]
[1731490945020,15.0,206.9,206.89,57.77574717]
[1731490945221,15.0,206.9,206.89,79.20350677]
[1731490945425,15.0,206.9,206.89,65.2046436]
[1731490946312,15.0,206.9,206.89,87.02578415]
[1731490946722,15.0,206.9,206.89,72.92692098]
[1731490947003,15.0,206.9,206.89,57.77574717]
[1731490947204,15.0,206.9,206.89,13.99886317]
[1731490947825,15.0,206.9,206.89,14.12435317]
[1731490948110,15.0,206.9,206.89,326.12435317]
[1731490948630,15.0,206.9,206.89,346.12435317]
[1731490948830,15.0,206.9,206.89,369.77574717]
[1731490950035,15.0,206.9,206.82,23.25760643]
[1731490950036,15.0,206.9,206.84,16.921]
[1731490950343,15.0,206.9,206.83,24.1733]
[1731490950344,15.0,206.9,206.87,16.9187]
[1731490951333,15.0,206.9,206.88,57.77574717]
[1731490952425,15.0,206.9,206.89,48.610284]
[1731490952939,15.0,206.9,206.89,360.610284]
[1731490954142,15.0,206.9,206.87,12.0848]
[1731490954344,15.0,206.9,206.84,4.8346]
[1731490954634,15.0,206.9,206.84,16.9212]
[1731490954816,15.0,206.9,206.86,0.12549]
[1731490955021,15.0,206.9,206.89,13.99886317]
[1731490955613,15.0,206.9,206.89,33.99886317]
[1731490956035,15.0,206.9,206.89,62.60914717]
[1731490957036,15.0,206.9,206.89,374.60914717]
[1731490957543,12.2981,206.9,206.89,76.83350034]
[1731490957734,0.4858035,206.93,206.9,43.902374]
[1731490957931,21.9741,207.05,206.93,43.776884]
[1731490957932,4.83,207.04,206.93,43.776884]
[1731490958121,4.83,207.04,206.97,13.99886317]
[1731490958438,21.9741,207.05,206.93,43.776884]
[1731490958439,21.9741,207.05,206.99,13.99886317]
[1731490959435,21.9741,207.05,207.01,13.99886317]
[1731490959639,22.4727,207.1,207.04,23.776884]
[1731490959835,6.4349,207.1,207.06,13.99886317]
[1731490960023,4.8279,207.13,207.06,13.99886317]
[1731490960626,4.8279,207.13,207.06,325.99886317]
[1731490961239,0.4858035,207.14,207.08,13.99886317]
[1731490962341,5.3135035,207.14,207.06,338.07256317]
[1731490962642,5.3135035,207.14,207.07,20.0]
[1731490963253,13.99886317,207.13,207.07,20.0]
[1731490963545,13.99886317,207.09,207.03,20.0]
[1731490963729,13.99886317,207.07,207.02,12.0761]
[1731490966040,13.99886317,207.09,207.02,12.0761]
[1731490966233,13.99886317,207.07,206.99,13.99886317]
[1731490966432,13.99886317,207.07,207.0,43.776884]
[1731490967535,13.99886317,207.07,207.01,4.8306]
[1731490968539,13.99886317,207.07,207.02,23.776884]
[1731490968853,13.99886317,207.09,207.02,23.776884]
[1731490969953,13.99886317,207.09,207.01,30.90616317]
[1731490970329,18.82766317,207.09,207.01,30.90616317]
[1731490971436,13.99886317,207.07,207.01,12.0767]
[1731490971641,13.99886317,207.04,207.01,12.0767]
[1731490971840,13.99886317,207.06,207.01,16.9073]
[1731490972142,13.99886317,207.06,207.01,12.0767]
[1731490972639,13.99886317,207.08,207.01,12.0767]
[1731490972946,0.4858035,207.14,207.07,23.776884]
[1731490973134,0.4858035,207.14,207.11,13.99886317]
[1731490973334,0.4858035,207.14,207.09,13.99886317]
[1731490973932,0.4858035,207.14,207.11,325.99886317]
[1731490974331,0.4858035,207.14,207.12,4.8281]
[1731490974643,0.4858035,207.14,207.11,325.99886317]
[1731490975044,0.4858035,207.14,207.11,312.0]
[1731490976439,19.31236667,207.14,207.06,26.07246317]
[1731490977047,5.3135035,207.14,207.08,13.99886317]
[1731490977355,5.3135035,207.14,207.1,13.99886317]
[1731490977356,0.4858035,207.14,207.1,13.99886317]
[1731490978240,19.31236667,207.14,207.06,30.90186317]
[1731490979332,19.31236667,207.14,207.06,342.90186317]
[1731490979533,5.3136035,207.14,207.08,13.99886317]
[1731490979945,0.4858035,207.14,207.1,13.99886317]
[1731490981558,0.4858035,207.14,207.08,26.07146317]
[1731490981752,0.4858035,207.14,207.08,30.90046317]
[1731490981944,5.3134035,207.14,207.08,30.90046317]
[1731490982753,5.3134035,207.14,206.98,28.83644404]
[1731490982754,13.99886317,207.12,207.03,26.07416317]
[1731490982934,13.99886317,207.08,207.01,13.99886317]
[1731490983342,13.99886317,207.08,206.99,13.99886317]
[1731490983538,4.8292,207.07,207.0,4.8309]
[1731490983743,13.99886317,207.06,206.99,342.90766317]
[1731490984954,13.99886317,207.08,207.01,13.99886317]
[1731490985259,4.829,207.09,207.03,13.99886317]
[1731490985654,18.82786317,207.09,207.01,13.99886317]
[1731490986158,13.99886317,207.07,206.99,338.07656317]
[1731490986662,13.99886317,207.07,206.99,342.90766317]
[1731490986952,13.99886317,207.07,207.01,13.99886317]
[1731490987155,18.82776317,207.09,207.01,13.99886317]
[1731490987341,4.8289,207.09,207.03,13.99886317]
[1731490987842,21.7371,207.1,207.05,13.99886317]